Workbook

Sheet Peo ülevaade
B3: Peo ülevaade
B6: ÜRITUS | D6: KÜLALISTE KOKKUVÕTE | H6: ="VASTUSETA KUTSED: "&VastusetaKutsed -> VASTUSETA KUTSED: 2
B7: Vanaema 75. sünnipäev | D7: RSVP ÜLEVAADE | F7: MAKSUMUS KÜLALISE KOHTA | H7: EELARVESUMMA
D8: Kinnitatud külalised | E8: Kinnitatud kokku | F8: Toit | G8: Muu | H8: Kokku
B9: KUUPÄEV | D9: Täiskasvanud | E9: =SUMIF(KülalineLaud[OSALEB?],"=Jah",KülalineLaud[TÄISKASVANUD]) -> 26 | F9: =SöökLaud[[#Totals],[KULU TÄISKASVANU KOHTA]] -> 12.69 € | G9: =PõhiasjadKuluKülaline -> 18.70 € | H9: =(AttendeeSummary[[#This Row],[Toit]]+AttendeeSummary[[#This Row],[Muu]])*TäiskasvanudKokku -> 816.03 €
B10: 2011-06-14 | D10: Lapsed | E10: =SUMIF(KülalineLaud[OSALEB?],"=Jah",KülalineLaud[LAPSED]) -> 20 | F10: =SöökLaud[[#Totals],[KULU LAPSE KOHTA]] -> 7.25 € | G10: =PõhiasjadKuluKülaline -> 18.70 € | H10: =(AttendeeSummary[[#This Row],[Toit]]+AttendeeSummary[[#This Row],[Muu]])*LapsedKokku -> 518.97 €
D11: Kokku | E11: =SUBTOTAL(109,AttendeeSummary[Kinnitatud kokku]) -> 46 | F11: ="Avg. "&TEXT(SUBTOTAL(101,AttendeeSummary[Toit]),"# ##0,00 €") -> Avg. 010 € | G11: ="Avg. "&TEXT(SUBTOTAL(101,AttendeeSummary[Muu]),"# ##0,00 €") -> Avg. 019 € | H11: =SUBTOTAL(109,AttendeeSummary[Kokku]) -> 1,335.00 €
B12: KELLAAEG
B13: Kl 14:00–16:00
B15: ASUKOHT | D15: EELARVE KOKKUVÕTE
B16: Tädi Mari maja | D16: ARTIKKEL | E16: KOGUS | F16: EELARVESUMMA | G16: KOGUMAKSUMUS | H16: VAHE
D17: Toit ja jook | E17: =COUNTA(SöökLaud[TOIT VÕI JOOK]) -> 18 | F17: 500.00 € | G17: =SöökLaud[[#Totals],[KOGUMAKSUMUS]] -> 475.00 € | H17: =EelarveÜlevaade[[#This Row],[EELARVESUMMA]]-EelarveÜlevaade[[#This Row],[KOGUMAKSUMUS]] -> 25.00 €
D18: =Laud1Päis -> Seadmed ja tarvikud | E18: =COUNTA(Laud1Eelarve[Seadmed ja tarvikud]) -> 7 | F18: 400.00 € | G18: =Laud1Eelarve[[#Totals],[Hind]] -> 400.00 € | H18: =EelarveÜlevaade[[#This Row],[EELARVESUMMA]]-EelarveÜlevaade[[#This Row],[KOGUMAKSUMUS]] -> 0.00 €
D19: =Laud2Päis -> Dekoratsioonid | E19: =COUNTA(Laud2Eelarve[Dekoratsioonid]) -> 4 | F19: 150.00 € | G19: =Laud2Eelarve[[#Totals],[Hind]] -> 175.00 € | H19: =EelarveÜlevaade[[#This Row],[EELARVESUMMA]]-EelarveÜlevaade[[#This Row],[KOGUMAKSUMUS]] -> 25.00 €
D20: =Laud3Päis -> Dekoratsioonid | E20: =COUNTA(Laud3Eelarve[Dekoratsioonid]) -> 4 | F20: 300.00 € | G20: =Laud3Eelarve[[#Totals],[Hind]] -> 285.00 € | H20: =EelarveÜlevaade[[#This Row],[EELARVESUMMA]]-EelarveÜlevaade[[#This Row],[KOGUMAKSUMUS]] -> 15.00 €
D21: Kokku | E21: =SUBTOTAL(109,EelarveÜlevaade[KOGUS]) -> 33 | F21: =SUBTOTAL(109,EelarveÜlevaade[EELARVESUMMA]) -> 1,350.00 € | G21: =SUBTOTAL(109,EelarveÜlevaade[KOGUMAKSUMUS]) -> 1,335.00 € | H21: =EelarveÜlevaade[[#Totals],[EELARVESUMMA]]-EelarveÜlevaade[[#Totals],[KOGUMAKSUMUS]] -> 15.00 €

Sheet Külaliste Nimekiri
B3: Külaliste nimekiri
B7: NIMI | C7: AADRESS | D7: LINN | E7: MAAKOND | F7: SIHTNUMBER | G7: TELEFON | H7: E-POST | I7: OSALEB? | J7: LAPSED | K7: TÄISKASVANUD | L7: KOKKU
B8: Pere 1 | C8: Aadress 1 | D8: Linn 1 | E8: Maakond 1 | F8: Sihtnumber 1 | G8: Telefon 1 | H8: E-post 1 | I8: Ei | J8: 2 | K8: 2 | L8: =SUM(KülalineLaud[[#This Row],[LAPSED]:[TÄISKASVANUD]]) -> 4
B9: Pere 2 | C9: Aadress 2 | D9: Linn 2 | E9: Maakond 2 | F9: Sihtnumber 2 | G9: Telefon 2 | H9: E-post 2 | I9: Jah | J9: 1 | K9: 1 | L9: =SUM(KülalineLaud[[#This Row],[LAPSED]:[TÄISKASVANUD]]) -> 2
B10: Pere 3 | C10: Aadress 3 | D10: Linn 3 | E10: Maakond 3 | F10: Sihtnumber 3 | G10: Telefon 3 | H10: E-post 3 | I10: Jah | J10: 3 | K10: 3 | L10: =SUM(KülalineLaud[[#This Row],[LAPSED]:[TÄISKASVANUD]]) -> 6
B11: Pere 4 | C11: Aadress 4 | D11: Linn 4 | E11: Maakond 4 | F11: Sihtnumber 4 | G11: Telefon 4 | H11: E-post 4 | K11: 2 | L11: =SUM(KülalineLaud[[#This Row],[LAPSED]:[TÄISKASVANUD]]) -> 2
B12: Pere 5 | C12: Aadress 5 | D12: Linn 5 | E12: Maakond 5 | F12: Sihtnumber 5 | G12: Telefon 5 | H12: E-post 5 | I12: Jah | J12: 4 | K12: 3 | L12: =SUM(KülalineLaud[[#This Row],[LAPSED]:[TÄISKASVANUD]]) -> 7
B13: Pere 6 | C13: Aadress 6 | D13: Linn 6 | E13: Maakond 6 | F13: Sihtnumber 6 | G13: Telefon 6 | H13: E-post 6 | I13: Jah | J13: 2 | K13: 2 | L13: =SUM(KülalineLaud[[#This Row],[LAPSED]:[TÄISKASVANUD]]) -> 4
B14: Pere 7 | C14: Aadress 7 | D14: Linn 7 | E14: Maakond 7 | F14: Sihtnumber 7 | G14: Telefon 7 | H14: E-post 7 | I14: Jah | J14: 1 | K14: 4 | L14: =SUM(KülalineLaud[[#This Row],[LAPSED]:[TÄISKASVANUD]]) -> 5
B15: Pere 8 | C15: Aadress 8 | D15: Linn 8 | E15: Maakond 8 | F15: Sihtnumber 8 | G15: Telefon 8 | H15: E-post 8 | I15: Ei | J15: 5 | K15: 3 | L15: =SUM(KülalineLaud[[#This Row],[LAPSED]:[TÄISKASVANUD]]) -> 8
B16: Pere 9 | C16: Aadress 9 | D16: Linn 9 | E16: Maakond 9 | F16: Sihtnumber 9 | G16: Telefon 9 | H16: E-post 9 | I16: Jah | J16: 3 | K16: 2 | L16: =SUM(KülalineLaud[[#This Row],[LAPSED]:[TÄISKASVANUD]]) -> 5
B17: Pere 10 | C17: Aadress 10 | D17: Linn 10 | E17: Maakond 10 | F17: Sihtnumber 10 | G17: Telefon 10 | H17: E-post 10 | I17: Jah | K17: 4 | L17: =SUM(KülalineLaud[[#This Row],[LAPSED]:[TÄISKASVANUD]]) -> 4
B18: Pere 11 | C18: Aadress 11 | D18: Linn 11 | E18: Maakond 11 | F18: Sihtnumber 11 | G18: Telefon 11 | H18: E-post 11 | I18: Jah | J18: 3 | K18: 5 | L18: =SUM(KülalineLaud[[#This Row],[LAPSED]:[TÄISKASVANUD]]) -> 8
B19: Pere 12 | C19: Aadress 12 | D19: Linn 12 | E19: Maakond 12 | F19: Sihtnumber 12 | G19: Telefon 12 | H19: E-post 12 | I19: Ei | J19: 2 | K19: 3 | L19: =SUM(KülalineLaud[[#This Row],[LAPSED]:[TÄISKASVANUD]]) -> 5
B20: Pere 13 | C20: Aadress 13 | D20: Linn 13 | E20: Maakond 13 | F20: Sihtnumber 13 | G20: Telefon 13 | H20: E-post 13 | I20: Jah | J20: 3 | K20: 2 | L20: =SUM(KülalineLaud[[#This Row],[LAPSED]:[TÄISKASVANUD]]) -> 5
B21: Pere 14 | C21: Aadress 14 | D21: Linn 14 | E21: Maakond 14 | F21: Sihtnumber 14 | G21: Telefon 14 | H21: E-post 14 | I21: Ei | K21: 1 | L21: =SUM(KülalineLaud[[#This Row],[LAPSED]:[TÄISKASVANUD]]) -> 1
B22: Pere 15 | C22: Aadress 15 | D22: Linn 15 | E22: Maakond 15 | F22: Sihtnumber 15 | G22: Telefon 15 | H22: E-post 15 | K22: 2 | L22: =SUM(KülalineLaud[[#This Row],[LAPSED]:[TÄISKASVANUD]]) -> 2

Sheet Toit Ja Jook
B3: Toit ja jook
B5: Sisestage hind ja eeldatav portsjonide arv, et saaksite automaatselt arvutada kogused ja portsjonihinnad lähtuvalt osavõtjate arvust.
B6: TOIT VÕI JOOK | C6: KOGUMAKSUMUS | D6: PORTSJON LAPSE KOHTA | E6: PORTSJON TÄISKASVANU KOHTA | F6: PORTSJONEID KOKKU | G6: PORTSJONI HIND | H6: KULU LAPSE KOHTA | I6: KULU TÄISKASVANU KOHTA | J6: MÄRKUSED
B7: Karastusjoogid | C7: 15.00 € | D7: 0.5 | E7: 2 | F7: =(SöökLaud[[#This Row],[PORTSJON LAPSE KOHTA]]*LapsedKokku)+(SöökLaud[[#This Row],[PORTSJON TÄISKASVANU KOHTA]]*TäiskasvanudKokku) -> 62 | G7: =IFERROR(SöökLaud[[#This Row],[KOGUMAKSUMUS]]/SöökLaud[[#This Row],[PORTSJONEID KOKKU]],"") -> 0.24 € | H7: =IFERROR(SöökLaud[[#This Row],[PORTSJONI HIND]]*SöökLaud[[#This Row],[PORTSJON LAPSE KOHTA]],"") -> 0.12 € | I7: =IFERROR(SöökLaud[[#This Row],[PORTSJONI HIND]]*SöökLaud[[#This Row],[PORTSJON TÄISKASVANU KOHTA]],"") -> 0.48 € | J7: Kaheliitrised pudelid
B8: Mahlapakid | C8: 15.00 € | D8: 2 | E8: 0 | F8: =(SöökLaud[[#This Row],[PORTSJON LAPSE KOHTA]]*LapsedKokku)+(SöökLaud[[#This Row],[PORTSJON TÄISKASVANU KOHTA]]*TäiskasvanudKokku) -> 40 | G8: =IFERROR(SöökLaud[[#This Row],[KOGUMAKSUMUS]]/SöökLaud[[#This Row],[PORTSJONEID KOKKU]],"") -> 0.38 € | H8: =IFERROR(SöökLaud[[#This Row],[PORTSJONI HIND]]*SöökLaud[[#This Row],[PORTSJON LAPSE KOHTA]],"") -> 0.75 € | I8: =IFERROR(SöökLaud[[#This Row],[PORTSJONI HIND]]*SöökLaud[[#This Row],[PORTSJON TÄISKASVANU KOHTA]],"") -> 0.00 € | J8: Õuna-viinamarja
B9: Vein | C9: 50.00 € | D9: 0 | E9: 2 | F9: =(SöökLaud[[#This Row],[PORTSJON LAPSE KOHTA]]*LapsedKokku)+(SöökLaud[[#This Row],[PORTSJON TÄISKASVANU KOHTA]]*TäiskasvanudKokku) -> 52 | G9: =IFERROR(SöökLaud[[#This Row],[KOGUMAKSUMUS]]/SöökLaud[[#This Row],[PORTSJONEID KOKKU]],"") -> 0.96 € | H9: =IFERROR(SöökLaud[[#This Row],[PORTSJONI HIND]]*SöökLaud[[#This Row],[PORTSJON LAPSE KOHTA]],"") -> 0.00 € | I9: =IFERROR(SöökLaud[[#This Row],[PORTSJONI HIND]]*SöökLaud[[#This Row],[PORTSJON TÄISKASVANU KOHTA]],"") -> 1.92 €
B10: Tort | C10: 75.00 € | D10: 1 | E10: 1 | F10: =(SöökLaud[[#This Row],[PORTSJON LAPSE KOHTA]]*LapsedKokku)+(SöökLaud[[#This Row],[PORTSJON TÄISKASVANU KOHTA]]*TäiskasvanudKokku) -> 46 | G10: =IFERROR(SöökLaud[[#This Row],[KOGUMAKSUMUS]]/SöökLaud[[#This Row],[PORTSJONEID KOKKU]],"") -> 1.63 € | H10: =IFERROR(SöökLaud[[#This Row],[PORTSJONI HIND]]*SöökLaud[[#This Row],[PORTSJON LAPSE KOHTA]],"") -> 1.63 € | I10: =IFERROR(SöökLaud[[#This Row],[PORTSJONI HIND]]*SöökLaud[[#This Row],[PORTSJON TÄISKASVANU KOHTA]],"") -> 1.63 € | J10: Osta kohalikust pagariärist
B11: Jäätis | C11: 20.00 € | D11: 1 | E11: 1.5 | F11: =(SöökLaud[[#This Row],[PORTSJON LAPSE KOHTA]]*LapsedKokku)+(SöökLaud[[#This Row],[PORTSJON TÄISKASVANU KOHTA]]*TäiskasvanudKokku) -> 59 | G11: =IFERROR(SöökLaud[[#This Row],[KOGUMAKSUMUS]]/SöökLaud[[#This Row],[PORTSJONEID KOKKU]],"") -> 0.34 € | H11: =IFERROR(SöökLaud[[#This Row],[PORTSJONI HIND]]*SöökLaud[[#This Row],[PORTSJON LAPSE KOHTA]],"") -> 0.34 € | I11: =IFERROR(SöökLaud[[#This Row],[PORTSJONI HIND]]*SöökLaud[[#This Row],[PORTSJON TÄISKASVANU KOHTA]],"") -> 0.51 €
B12: Magustoidukausid | C12: 15.00 € | D12: 1 | E12: 0 | F12: =(SöökLaud[[#This Row],[PORTSJON LAPSE KOHTA]]*LapsedKokku)+(SöökLaud[[#This Row],[PORTSJON TÄISKASVANU KOHTA]]*TäiskasvanudKokku) -> 20 | G12: =IFERROR(SöökLaud[[#This Row],[KOGUMAKSUMUS]]/SöökLaud[[#This Row],[PORTSJONEID KOKKU]],"") -> 0.75 € | H12: =IFERROR(SöökLaud[[#This Row],[PORTSJONI HIND]]*SöökLaud[[#This Row],[PORTSJON LAPSE KOHTA]],"") -> 0.75 € | I12: =IFERROR(SöökLaud[[#This Row],[PORTSJONI HIND]]*SöökLaud[[#This Row],[PORTSJON TÄISKASVANU KOHTA]],"") -> 0.00 € | J12: Osta valmispakitud kausid: vanilli ja šokolaadi
B13: Täidetud munad | C13: 32.00 € | D13: 1 | E13: 2 | F13: =(SöökLaud[[#This Row],[PORTSJON LAPSE KOHTA]]*LapsedKokku)+(SöökLaud[[#This Row],[PORTSJON TÄISKASVANU KOHTA]]*TäiskasvanudKokku) -> 72 | G13: =IFERROR(SöökLaud[[#This Row],[KOGUMAKSUMUS]]/SöökLaud[[#This Row],[PORTSJONEID KOKKU]],"") -> 0.44 € | H13: =IFERROR(SöökLaud[[#This Row],[PORTSJONI HIND]]*SöökLaud[[#This Row],[PORTSJON LAPSE KOHTA]],"") -> 0.44 € | I13: =IFERROR(SöökLaud[[#This Row],[PORTSJONI HIND]]*SöökLaud[[#This Row],[PORTSJON TÄISKASVANU KOHTA]],"") -> 0.89 € | J13: Määrdejuustu ja vorstiga täidetud keedetud munad
B14: Tikuvõileivad | C14: 22.00 € | D14: 0 | E14: 3 | F14: =(SöökLaud[[#This Row],[PORTSJON LAPSE KOHTA]]*LapsedKokku)+(SöökLaud[[#This Row],[PORTSJON TÄISKASVANU KOHTA]]*TäiskasvanudKokku) -> 78 | G14: =IFERROR(SöökLaud[[#This Row],[KOGUMAKSUMUS]]/SöökLaud[[#This Row],[PORTSJONEID KOKKU]],"") -> 0.28 € | H14: =IFERROR(SöökLaud[[#This Row],[PORTSJONI HIND]]*SöökLaud[[#This Row],[PORTSJON LAPSE KOHTA]],"") -> 0.00 € | I14: =IFERROR(SöökLaud[[#This Row],[PORTSJONI HIND]]*SöökLaud[[#This Row],[PORTSJON TÄISKASVANU KOHTA]],"") -> 0.85 € | J14: Tomat ja basiilik
B15: Suitsulõhe | C15: 50.00 € | D15: 1 | E15: 2 | F15: =(SöökLaud[[#This Row],[PORTSJON LAPSE KOHTA]]*LapsedKokku)+(SöökLaud[[#This Row],[PORTSJON TÄISKASVANU KOHTA]]*TäiskasvanudKokku) -> 72 | G15: =IFERROR(SöökLaud[[#This Row],[KOGUMAKSUMUS]]/SöökLaud[[#This Row],[PORTSJONEID KOKKU]],"") -> 0.69 € | H15: =IFERROR(SöökLaud[[#This Row],[PORTSJONI HIND]]*SöökLaud[[#This Row],[PORTSJON LAPSE KOHTA]],"") -> 0.69 € | I15: =IFERROR(SöökLaud[[#This Row],[PORTSJONI HIND]]*SöökLaud[[#This Row],[PORTSJON TÄISKASVANU KOHTA]],"") -> 1.39 €
B16: Minisaiad | C16: 20.00 € | D16: 1 | E16: 2 | F16: =(SöökLaud[[#This Row],[PORTSJON LAPSE KOHTA]]*LapsedKokku)+(SöökLaud[[#This Row],[PORTSJON TÄISKASVANU KOHTA]]*TäiskasvanudKokku) -> 72 | G16: =IFERROR(SöökLaud[[#This Row],[KOGUMAKSUMUS]]/SöökLaud[[#This Row],[PORTSJONEID KOKKU]],"") -> 0.28 € | H16: =IFERROR(SöökLaud[[#This Row],[PORTSJONI HIND]]*SöökLaud[[#This Row],[PORTSJON LAPSE KOHTA]],"") -> 0.28 € | I16: =IFERROR(SöökLaud[[#This Row],[PORTSJONI HIND]]*SöökLaud[[#This Row],[PORTSJON TÄISKASVANU KOHTA]],"") -> 0.56 € | J16: 4 kotti, erinevad
B17: Määrdejuust | C17: 10.00 € | D17: 1 | E17: 2 | F17: =(SöökLaud[[#This Row],[PORTSJON LAPSE KOHTA]]*LapsedKokku)+(SöökLaud[[#This Row],[PORTSJON TÄISKASVANU KOHTA]]*TäiskasvanudKokku) -> 72 | G17: =IFERROR(SöökLaud[[#This Row],[KOGUMAKSUMUS]]/SöökLaud[[#This Row],[PORTSJONEID KOKKU]],"") -> 0.14 € | H17: =IFERROR(SöökLaud[[#This Row],[PORTSJONI HIND]]*SöökLaud[[#This Row],[PORTSJON LAPSE KOHTA]],"") -> 0.14 € | I17: =IFERROR(SöökLaud[[#This Row],[PORTSJONI HIND]]*SöökLaud[[#This Row],[PORTSJON TÄISKASVANU KOHTA]],"") -> 0.28 € | J17: 2 suurt karpi
B18: Oliivid | C18: 12.00 € | D18: 1 | E18: 2 | F18: =(SöökLaud[[#This Row],[PORTSJON LAPSE KOHTA]]*LapsedKokku)+(SöökLaud[[#This Row],[PORTSJON TÄISKASVANU KOHTA]]*TäiskasvanudKokku) -> 72 | G18: =IFERROR(SöökLaud[[#This Row],[KOGUMAKSUMUS]]/SöökLaud[[#This Row],[PORTSJONEID KOKKU]],"") -> 0.17 € | H18: =IFERROR(SöökLaud[[#This Row],[PORTSJONI HIND]]*SöökLaud[[#This Row],[PORTSJON LAPSE KOHTA]],"") -> 0.17 € | I18: =IFERROR(SöökLaud[[#This Row],[PORTSJONI HIND]]*SöökLaud[[#This Row],[PORTSJON TÄISKASVANU KOHTA]],"") -> 0.33 € | J18: 3 purki
B19: Kanatiivad | C19: 45.00 € | D19: 2 | E19: 4 | F19: =(SöökLaud[[#This Row],[PORTSJON LAPSE KOHTA]]*LapsedKokku)+(SöökLaud[[#This Row],[PORTSJON TÄISKASVANU KOHTA]]*TäiskasvanudKokku) -> 144 | G19: =IFERROR(SöökLaud[[#This Row],[KOGUMAKSUMUS]]/SöökLaud[[#This Row],[PORTSJONEID KOKKU]],"") -> 0.31 € | H19: =IFERROR(SöökLaud[[#This Row],[PORTSJONI HIND]]*SöökLaud[[#This Row],[PORTSJON LAPSE KOHTA]],"") -> 0.63 € | I19: =IFERROR(SöökLaud[[#This Row],[PORTSJONI HIND]]*SöökLaud[[#This Row],[PORTSJON TÄISKASVANU KOHTA]],"") -> 1.25 € | J19: Osta kohalikust lihapoest
B20: Hummus | C20: 10.00 € | D20: 4 | E20: 6 | F20: =(SöökLaud[[#This Row],[PORTSJON LAPSE KOHTA]]*LapsedKokku)+(SöökLaud[[#This Row],[PORTSJON TÄISKASVANU KOHTA]]*TäiskasvanudKokku) -> 236 | G20: =IFERROR(SöökLaud[[#This Row],[KOGUMAKSUMUS]]/SöökLaud[[#This Row],[PORTSJONEID KOKKU]],"") -> 0.04 € | H20: =IFERROR(SöökLaud[[#This Row],[PORTSJONI HIND]]*SöökLaud[[#This Row],[PORTSJON LAPSE KOHTA]],"") -> 0.17 € | I20: =IFERROR(SöökLaud[[#This Row],[PORTSJONI HIND]]*SöökLaud[[#This Row],[PORTSJON TÄISKASVANU KOHTA]],"") -> 0.25 € | J20: Teha valmis eelmisel õhtul
B21: Parmesanijuustuga krõpsud | C21: 14.00 € | D21: 4 | E21: 6 | F21: =(SöökLaud[[#This Row],[PORTSJON LAPSE KOHTA]]*LapsedKokku)+(SöökLaud[[#This Row],[PORTSJON TÄISKASVANU KOHTA]]*TäiskasvanudKokku) -> 236 | G21: =IFERROR(SöökLaud[[#This Row],[KOGUMAKSUMUS]]/SöökLaud[[#This Row],[PORTSJONEID KOKKU]],"") -> 0.06 € | H21: =IFERROR(SöökLaud[[#This Row],[PORTSJONI HIND]]*SöökLaud[[#This Row],[PORTSJON LAPSE KOHTA]],"") -> 0.24 € | I21: =IFERROR(SöökLaud[[#This Row],[PORTSJONI HIND]]*SöökLaud[[#This Row],[PORTSJON TÄISKASVANU KOHTA]],"") -> 0.36 € | J21: Teha valmis eelmisel õhtul
B22: Köögiviljavalik | C22: 30.00 € | D22: 4 | E22: 10 | F22: =(SöökLaud[[#This Row],[PORTSJON LAPSE KOHTA]]*LapsedKokku)+(SöökLaud[[#This Row],[PORTSJON TÄISKASVANU KOHTA]]*TäiskasvanudKokku) -> 340 | G22: =IFERROR(SöökLaud[[#This Row],[KOGUMAKSUMUS]]/SöökLaud[[#This Row],[PORTSJONEID KOKKU]],"") -> 0.09 € | H22: =IFERROR(SöökLaud[[#This Row],[PORTSJONI HIND]]*SöökLaud[[#This Row],[PORTSJON LAPSE KOHTA]],"") -> 0.35 € | I22: =IFERROR(SöökLaud[[#This Row],[PORTSJONI HIND]]*SöökLaud[[#This Row],[PORTSJON TÄISKASVANU KOHTA]],"") -> 0.88 € | J22: Porgandipulgad, seller, brokkoli, lillkapsas, punane ja roheline paprika
B23: Juustupallid | C23: 15.00 € | D23: 5 | E23: 10 | F23: =(SöökLaud[[#This Row],[PORTSJON LAPSE KOHTA]]*LapsedKokku)+(SöökLaud[[#This Row],[PORTSJON TÄISKASVANU KOHTA]]*TäiskasvanudKokku) -> 360 | G23: =IFERROR(SöökLaud[[#This Row],[KOGUMAKSUMUS]]/SöökLaud[[#This Row],[PORTSJONEID KOKKU]],"") -> 0.04 € | H23: =IFERROR(SöökLaud[[#This Row],[PORTSJONI HIND]]*SöökLaud[[#This Row],[PORTSJON LAPSE KOHTA]],"") -> 0.21 € | I23: =IFERROR(SöökLaud[[#This Row],[PORTSJONI HIND]]*SöökLaud[[#This Row],[PORTSJON TÄISKASVANU KOHTA]],"") -> 0.42 € | J23: Erinevad: sulatatud juust, teravamaitseline juust pähklitega
B24: Küpsised | C24: 25.00 € | D24: 5 | E24: 10 | F24: =(SöökLaud[[#This Row],[PORTSJON LAPSE KOHTA]]*LapsedKokku)+(SöökLaud[[#This Row],[PORTSJON TÄISKASVANU KOHTA]]*TäiskasvanudKokku) -> 360 | G24: =IFERROR(SöökLaud[[#This Row],[KOGUMAKSUMUS]]/SöökLaud[[#This Row],[PORTSJONEID KOKKU]],"") -> 0.07 € | H24: =IFERROR(SöökLaud[[#This Row],[PORTSJONI HIND]]*SöökLaud[[#This Row],[PORTSJON LAPSE KOHTA]],"") -> 0.35 € | I24: =IFERROR(SöökLaud[[#This Row],[PORTSJONI HIND]]*SöökLaud[[#This Row],[PORTSJON TÄISKASVANU KOHTA]],"") -> 0.69 € | J24: Erinevad
B25: Kokku | C25: =SUBTOTAL(109,SöökLaud[KOGUMAKSUMUS]) -> 475.00 € | D25: =SUBTOTAL(109,SöökLaud[PORTSJON LAPSE KOHTA]) -> 34.5 | E25: =SUBTOTAL(109,SöökLaud[PORTSJON TÄISKASVANU KOHTA]) -> 65.5 | F25: =SUBTOTAL(109,SöökLaud[PORTSJONEID KOKKU]) -> 2393 | G25: =SUBTOTAL(109,SöökLaud[PORTSJONI HIND]) -> 6.92 € | H25: =SUBTOTAL(109,SöökLaud[KULU LAPSE KOHTA]) -> 7.25 € | I25: =SUBTOTAL(109,SöökLaud[KULU TÄISKASVANU KOHTA]) -> 12.69 €

Sheet Muu Vajalik
B3: Muu vajalik
B6: Seadmed ja tarvikud | C6: Hind | D6: Ostetud | E6: Märkused
B7: Ruumide/saali üürimine | C7: 250.00 € | D7: Jah
B8: Laudlinad | C8: 30.00 € | D8: Jah | E8: Üür
B9: Lauad ja toolid | C9: 0.00 € | E9: Saali üüri sees
B10: Pabersalvrätid | C10: 25.00 €
B11: Riidest salvrätid | C11: 20.00 € | E11: Üür
B12: Lauateenindus | C12: 50.00 € | E12: Üür
B13: Lauanõud | C13: 25.00 € | E13: Üür
B14: Kokku | C14: =SUBTOTAL(109,Laud1Eelarve[Hind]) -> 400.00 €
B17: Dekoratsioonid | C17: Hind | D17: Ostetud | E17: Märkused
B18: Õhupallid | C18: 25.00 €
B19: Heeliumipaak | C19: 50.00 € | E19: Üür
B20: Lauakaunistused | C20: 100.00 € | D20: Jah | E20: Kokku 10
B21: Klaasvaasid | C21: 0.00 € | E21: Maarikalt laenuks
B22: Kokku | C22: =SUBTOTAL(109,Laud2Eelarve[Hind]) -> 175.00 €
B25: Dekoratsioonid | C25: Hind | D25: Ostetud | E25: Märkused
B26: Kutsed | C26: 50.00 € | D26: Jah
B27: Postikulu | C27: 60.00 € | D27: Jah
B28: Fotograaf | C28: 125.00 € | E28: Kaks tundi (14:00–16:00)
B29: Väikesed kingitused | C29: 50.00 €
B30: Kokku | C30: =SUBTOTAL(109,Laud3Eelarve[Hind]) -> 285.00 €

Sheet Istumispaigutuse Ruudustik
A1: Paigutus
AH35: *1 ruut = umbes 30 x 30 cm
A36: Märkused | T36: =" Kinnitatud külaliste koguarv: "&KinnitatudKülalised -> Kinnitatud külaliste koguarv: 46
T37: Saate kasutada mõnda järgmistest lauapaigutustest:
U38: =ROUNDUP(KinnitatudKülalised/6,0)&" 137 cm läbimõõduga ümmargused lauad (6 istekohta)" -> 8 137 cm läbimõõduga ümmargused lauad (6 istekohta)
U39: =ROUNDUP(KinnitatudKülalised/8,0) &" 152 cm läbimõõduga ümmargused lauad (8 istekohta)" -> 6 152 cm läbimõõduga ümmargused lauad (8 istekohta)
U40: =ROUNDUP(KinnitatudKülalised/10,0)&" 183 cm läbimõõduga ümmargused lauad (10 istekohta)" -> 5 183 cm läbimõõduga ümmargused lauad (10 istekohta)
U41: =ROUNDUP(KinnitatudKülalised/6,0)& " 76 cm × 183 cm kandilised lauad (6 istekohta)" -> 8 76 cm × 183 cm kandilised lauad (6 istekohta)
U42: =ROUNDUP(KinnitatudKülalised/8,0)&" 76 cm × 244 cm kandilised lauad (8 istekohta)" -> 6 76 cm × 244 cm kandilised lauad (8 istekohta)
T43: (Laudade jaoks eelistatud vahe: 105–110 cm)
